[Event "Titled Tuesday Blitz May 25 2021"]
[White "Rostovtsev, Dmitry"]
[Black "Omk124"]
[WhiteFideId "34278320"]
[WhiteElo "2143"]
[BlackElo "2551"]
[Result "0-1"]
[Round "11"]
[TimeControl "180+1"]
[Date "2021.05.25"]
[WhiteClock "0:00:03"]
[BlackClock "0:00:21"]

1. e4 {[%clk 0:03:00]}  c5 {[%clk 0:02:42]} 2. Nf3 {[%clk 0:02:59]}  d6 {[%clk 0:02:41]} 3. d4 {[%clk 0:03:00]}  cxd4 {[%clk 0:02:38]} 4. Nxd4 {[%clk 0:03:00]}  Nf6 {[%clk 0:02:38]} 5. Nc3 {[%clk 0:03:01]}  a6 {[%clk 0:02:38]} 6. Be3 {[%clk 0:03:01]}  e5 {[%clk 0:02:39]} 7. Nf3 {[%clk 0:03:01]}  Be7 {[%clk 0:02:39]} 8. h3 {[%clk 0:02:53]}  O-O {[%clk 0:02:39]} 9. g4 {[%clk 0:02:54]}  b5 {[%clk 0:02:38]} 10. g5 {[%clk 0:02:54]}  Nfd7 {[%clk 0:02:26]} 11. Qd5 {[%clk 0:02:43]}  b4 {[%clk 0:01:59]} 12. Na4 {[%clk 0:01:56]}  Qc7 {[%clk 0:01:52]} 13. Qd2 {[%clk 0:01:23]}  Bb7 {[%clk 0:01:51]} 14. Bd3 {[%clk 0:01:24]}  Nc6 {[%clk 0:01:27]} 15. h4 {[%clk 0:01:15]}  Rfc8 {[%clk 0:01:26]} 16. O-O {[%clk 0:01:11]}  Qa5 {[%clk 0:01:25]} 17. b3 {[%clk 0:01:09]}  Nd8 {[%clk 0:01:25]} 18. Rad1 {[%clk 0:01:02]}  Ne6 {[%clk 0:01:22]} 19. a3 {[%clk 0:00:59]}  Bc6 {[%clk 0:01:18]} 20. axb4 {[%clk 0:00:53]}  Qc7 {[%clk 0:01:18]} 21. c4 {[%clk 0:00:45]}  Qb7 {[%clk 0:01:17]} 22. Nc3 {[%clk 0:00:44]}  Qxb4 {[%clk 0:01:03]} 23. Nd5 {[%clk 0:00:44]}  Qxd2 {[%clk 0:01:03]} 24. Rxd2 {[%clk 0:00:44]}  Bxd5 {[%clk 0:01:02]} 25. exd5 {[%clk 0:00:39]}  Nec5 {[%clk 0:01:03]} 26. Bc2 {[%clk 0:00:37]}  Rab8 {[%clk 0:01:02]} 27. Rb1 {[%clk 0:00:33]}  a5 {[%clk 0:00:59]} 28. Rdd1 {[%clk 0:00:16]}  Bd8 {[%clk 0:00:55]} 29. Nd2 {[%clk 0:00:16]}  g6 {[%clk 0:00:51]} 30. Kg2 {[%clk 0:00:16]}  f5 {[%clk 0:00:47]} 31. gxf6 {[%clk 0:00:13]}  Nxf6 {[%clk 0:00:47]} 32. Bxc5 {[%clk 0:00:10]}  Rxc5 {[%clk 0:00:46]} 33. Ra1 {[%clk 0:00:09]}  Bb6 {[%clk 0:00:43]} 34. Ne4 {[%clk 0:00:08]}  Nxe4 {[%clk 0:00:43]} 35. Bxe4 {[%clk 0:00:09]}  Rc7 {[%clk 0:00:44]} 36. f3 {[%clk 0:00:09]}  Ra7 {[%clk 0:00:42]} 37. Rh1 {[%clk 0:00:07]}  Bd4 {[%clk 0:00:42]} 38. Rab1 {[%clk 0:00:05]}  Ra6 {[%clk 0:00:42]} 39. Bc2 {[%clk 0:00:03]}  Rc8 {[%clk 0:00:41]} 40. h5 {[%clk 0:00:03]}  gxh5 {[%clk 0:00:40]} 41. Rxh5 {[%clk 0:00:04]}  Ra7 {[%clk 0:00:40]} 42. Rbh1 {[%clk 0:00:04]}  Rg7+ {[%clk 0:00:41]} 43. Kf1 {[%clk 0:00:05]}  Rcc7 {[%clk 0:00:41]} 44. Bf5 {[%clk 0:00:05]}  Rb7 {[%clk 0:00:40]} 45. Bc2 {[%clk 0:00:02]}  Rbf7 {[%clk 0:00:37]} 46. Ke2 {[%clk 0:00:02]}  Rg2+ {[%clk 0:00:37]} 47. Kd1 {[%clk 0:00:02]}  Rxf3 {[%clk 0:00:34]} 48. Rxh7 {[%clk 0:00:03]}  Rfg3 {[%clk 0:00:27]} 49. Rh8+ {[%clk 0:00:03]}  Kf7 {[%clk 0:00:28]} 50. R1h7+ {[%clk 0:00:02]}  Rg7 {[%clk 0:00:28]} 51. Rxg7+ {[%clk 0:00:02]}  Kxg7 {[%clk 0:00:29]} 52. Rh7+ {[%clk 0:00:02]}  Kg8 {[%clk 0:00:30]} 53. Rh3 {[%clk 0:00:02]}  Rg1+ {[%clk 0:00:28]} 54. Ke2 {[%clk 0:00:03]}  Rc1 {[%clk 0:00:27]} 55. Kd2 {[%clk 0:00:02]}  Ra1 {[%clk 0:00:24]} 56. Rf3 {[%clk 0:00:02]}  Ra2 {[%clk 0:00:23]} 57. Kd3 {[%clk 0:00:03]}  Rb2 {[%clk 0:00:22]} 58. Rf1 {[%clk 0:00:02]}  Kg7 {[%clk 0:00:21]} 59. Rb1 {[%clk 0:00:01]}  Ra2 {[%clk 0:00:20]} 60. Rd1 {[%clk 0:00:01]}  Bb2 {[%clk 0:00:20]} 61. Rb1 {[%clk 0:00:01]}  Ba3 {[%clk 0:00:20]} 62. Rg1+ {[%clk 0:00:02]}  Kf7 {[%clk 0:00:20]} 63. Rb1 {[%clk 0:00:03]}  Bc5 {[%clk 0:00:20]} 64. Rc1 {[%clk 0:00:02]}  e4+ {[%clk 0:00:21]} 65. Kc3 {[%clk 0:00:02]}  Bb4+ {[%clk 0:00:20]} 66. Kd4 {[%clk 0:00:03]}  Bd2 {[%clk 0:00:21]} 67. Rf1+ {[%clk 0:00:03]}  Ke7 {[%clk 0:00:22]} 68. Bxe4 {[%clk 0:00:04]}  Bg5 {[%clk 0:00:21]} 69. Rb1 {[%clk 0:00:03]}  Rd2+ {[%clk 0:00:20]} 70. Kc3 {[%clk 0:00:03]}  Rh2 {[%clk 0:00:21]} 71. Bd3 {[%clk 0:00:03]}  Bf6# {[%clk 0:00:21]} 0-1


[Site "https://www.chess.com"]

[Event "Titled Tuesday Blitz May 25 2021"]
[White "Rustemov, Alexander"]
[Black "Koellner, Ruben Gideon"]
[WhiteFideId "4119002"]
[BlackFideId "12993093"]
[WhiteElo "2721"]
[BlackElo "2525"]
[Result "1-0"]
[Round "11"]
[TimeControl "180+1"]
[Date "2021.05.25"]
[WhiteClock "0:00:19"]
[BlackClock "0:00:03"]

1. d4 {[%clk 0:03:00]}  d6 {[%clk 0:02:59]} 2. Nf3 {[%clk 0:02:58]}  Nf6 {[%clk 0:03:00]} 3. g3 {[%clk 0:02:57]}  g6 {[%clk 0:03:00]} 4. Bg2 {[%clk 0:02:57]}  Bg7 {[%clk 0:03:00]} 5. c4 {[%clk 0:02:58]}  c6 {[%clk 0:03:01]} 6. Nc3 {[%clk 0:02:58]}  Bf5 {[%clk 0:03:01]} 7. Nh4 {[%clk 0:02:49]}  Bd7 {[%clk 0:03:00]} 8. O-O {[%clk 0:02:48]}  O-O {[%clk 0:02:58]} 9. e4 {[%clk 0:02:46]}  e5 {[%clk 0:02:59]} 10. Nf3 {[%clk 0:02:45]}  Re8 {[%clk 0:02:56]} 11. h3 {[%clk 0:02:43]}  Qc7 {[%clk 0:02:46]} 12. Be3 {[%clk 0:02:40]}  Be6 {[%clk 0:02:29]} 13. b3 {[%clk 0:02:36]}  h6 {[%clk 0:02:29]} 14. Qd2 {[%clk 0:02:36]}  Kh7 {[%clk 0:02:29]} 15. Rfd1 {[%clk 0:02:30]}  a5 {[%clk 0:02:21]} 16. d5 {[%clk 0:02:18]}  cxd5 {[%clk 0:02:14]} 17. cxd5 {[%clk 0:02:17]}  Bd7 {[%clk 0:02:14]} 18. Rac1 {[%clk 0:02:16]}  Qd8 {[%clk 0:02:03]} 19. Qe2 {[%clk 0:02:11]}  Na6 {[%clk 0:01:57]} 20. Nd2 {[%clk 0:02:09]}  Rc8 {[%clk 0:01:43]} 21. Nc4 {[%clk 0:02:07]}  Bf8 {[%clk 0:01:20]} 22. Bb6 {[%clk 0:02:01]}  Qe7 {[%clk 0:01:19]} 23. Nxa5 {[%clk 0:02:00]}  Nc5 {[%clk 0:01:17]} 24. Bxc5 {[%clk 0:01:34]}  Rxc5 {[%clk 0:01:17]} 25. Nxb7 {[%clk 0:01:34]}  Rc7 {[%clk 0:01:18]} 26. Na5 {[%clk 0:01:33]}  Rec8 {[%clk 0:01:16]} 27. Qe1 {[%clk 0:01:28]}  h5 {[%clk 0:01:08]} 28. Ne2 {[%clk 0:01:26]}  Bh6 {[%clk 0:01:00]} 29. Rxc7 {[%clk 0:01:25]}  Rxc7 {[%clk 0:01:01]} 30. Nc4 {[%clk 0:01:17]}  Bb5 {[%clk 0:01:01]} 31. Qb4 {[%clk 0:01:16]}  Bxc4 {[%clk 0:01:00]} 32. bxc4 {[%clk 0:01:17]}  Nd7 {[%clk 0:01:00]} 33. Nc3 {[%clk 0:01:15]}  Nc5 {[%clk 0:00:54]} 34. h4 {[%clk 0:01:12]}  Ra7 {[%clk 0:00:50]} 35. a4 {[%clk 0:01:10]}  Qd7 {[%clk 0:00:36]} 36. a5 {[%clk 0:01:04]}  Qd8 {[%clk 0:00:33]} 37. Qb6 {[%clk 0:01:00]}  Qxb6 {[%clk 0:00:14]} 38. axb6 {[%clk 0:01:01]}  Rb7 {[%clk 0:00:14]} 39. Rb1 {[%clk 0:01:00]}  Bd2 {[%clk 0:00:14]} 40. Nb5 {[%clk 0:00:48]}  Rxb6 {[%clk 0:00:13]} 41. Ra1 {[%clk 0:00:48]}  Nb3 {[%clk 0:00:09]} 42. Ra7 {[%clk 0:00:43]}  Kg7 {[%clk 0:00:07]} 43. Bh3 {[%clk 0:00:42]}  Nd4 {[%clk 0:00:06]} 44. Be6 {[%clk 0:00:42]}  Nxb5 {[%clk 0:00:04]} 45. Rxf7+ {[%clk 0:00:41]}  Kh6 {[%clk 0:00:03]} 46. cxb5 {[%clk 0:00:41]}  Rxb5 {[%clk 0:00:04]} 47. Kg2 {[%clk 0:00:22]}  Rb2 {[%clk 0:00:03]} 48. Bd7 {[%clk 0:00:19]} 1-0


[Site "https://www.chess.com"]

[Event "Titled Tuesday Blitz May 25 2021"]
[White "Sadovsky, Artem"]
[Black "Terry, Renato"]
[WhiteFideId "4155840"]
[BlackFideId "3803457"]
[WhiteElo "2476"]
[BlackElo "2581"]
[Result "0-1"]
[Round "11"]
[TimeControl "180+1"]
[Date "2021.05.25"]
[WhiteClock "0:00:02"]
[BlackClock "0:01:05"]

1. Nf3 {[%clk 0:03:00]}  d5 {[%clk 0:02:58]} 2. g3 {[%clk 0:03:01]}  Nf6 {[%clk 0:02:58]} 3. Bg2 {[%clk 0:03:01]}  c6 {[%clk 0:02:59]} 4. O-O {[%clk 0:03:01]}  Bg4 {[%clk 0:02:59]} 5. b3 {[%clk 0:03:02]}  Nbd7 {[%clk 0:02:59]} 6. Bb2 {[%clk 0:03:02]}  e6 {[%clk 0:03:00]} 7. d3 {[%clk 0:03:02]}  Bd6 {[%clk 0:03:00]} 8. Nbd2 {[%clk 0:03:02]}  O-O {[%clk 0:03:01]} 9. e4 {[%clk 0:03:03]}  Qe7 {[%clk 0:02:57]} 10. Re1 {[%clk 0:02:56]}  Ba3 {[%clk 0:02:52]} 11. Qc1 {[%clk 0:02:53]}  Bxb2 {[%clk 0:02:51]} 12. Qxb2 {[%clk 0:02:54]}  Bxf3 {[%clk 0:02:52]} 13. Bxf3 {[%clk 0:02:50]}  dxe4 {[%clk 0:02:43]} 14. Nxe4 {[%clk 0:02:49]}  Rfd8 {[%clk 0:02:41]} 15. Nxf6+ {[%clk 0:02:44]}  Qxf6 {[%clk 0:02:42]} 16. Qxf6 {[%clk 0:02:44]}  Nxf6 {[%clk 0:02:43]} 17. Rad1 {[%clk 0:02:29]}  Rd6 {[%clk 0:02:35]} 18. d4 {[%clk 0:02:13]}  Rad8 {[%clk 0:02:27]} 19. c3 {[%clk 0:02:12]}  b6 {[%clk 0:02:11]} 20. Kf1 {[%clk 0:02:12]}  Kf8 {[%clk 0:02:11]} 21. h4 {[%clk 0:02:11]}  Ke7 {[%clk 0:02:11]} 22. Ke2 {[%clk 0:01:59]}  h6 {[%clk 0:02:10]} 23. Ke3 {[%clk 0:01:54]}  c5 {[%clk 0:02:07]} 24. dxc5 {[%clk 0:01:53]}  bxc5 {[%clk 0:02:08]} 25. Rxd6 {[%clk 0:01:52]}  Rxd6 {[%clk 0:02:09]} 26. Rd1 {[%clk 0:01:50]}  Ra6 {[%clk 0:02:09]} 27. Rd2 {[%clk 0:01:49]}  Nd7 {[%clk 0:02:09]} 28. Be2 {[%clk 0:01:46]}  Rb6 {[%clk 0:02:07]} 29. Bc4 {[%clk 0:01:42]}  g5 {[%clk 0:02:04]} 30. hxg5 {[%clk 0:01:38]}  hxg5 {[%clk 0:02:05]} 31. f4 {[%clk 0:01:36]}  gxf4+ {[%clk 0:02:03]} 32. gxf4 {[%clk 0:01:37]}  Rd6 {[%clk 0:01:52]} 33. Rxd6 {[%clk 0:01:35]}  Kxd6 {[%clk 0:01:53]} 34. Be2 {[%clk 0:01:27]}  f5 {[%clk 0:01:49]} 35. Bf3 {[%clk 0:01:01]}  Nf6 {[%clk 0:01:46]} 36. Kd3 {[%clk 0:00:35]}  Nd7 {[%clk 0:01:38]} 37. Ke3 {[%clk 0:00:32]}  Nb6 {[%clk 0:01:33]} 38. Bg2 {[%clk 0:00:25]}  Nd5+ {[%clk 0:01:23]} 39. Bxd5 {[%clk 0:00:25]}  Kxd5 {[%clk 0:01:23]} 40. a3 {[%clk 0:00:03]}  e5 {[%clk 0:01:09]} 41. fxe5 {[%clk 0:00:02]}  Kxe5 {[%clk 0:01:10]} 42. b4 {[%clk 0:00:02]}  Kd5 {[%clk 0:01:05]} 0-1


[Site "https://www.chess.com"]

[Event "Titled Tuesday Blitz May 25 2021"]
[White "Shkapenko, Pavel"]
[Black "Gabdushev, Ruslan"]
[WhiteFideId "4151933"]
[BlackFideId "4137833"]
[WhiteElo "2386"]
[BlackElo "2312"]
[Result "1-0"]
[Round "11"]
[TimeControl "180+1"]
[Date "2021.05.25"]
[WhiteClock "0:00:09"]
[BlackClock "0:00:03"]

1. e4 {[%clk 0:03:00]}  Nc6 {[%clk 0:02:59]} 2. d4 {[%clk 0:02:56]}  d5 {[%clk 0:02:59]} 3. Nc3 {[%clk 0:02:54]}  e5 {[%clk 0:02:58]} 4. dxe5 {[%clk 0:02:44]}  d4 {[%clk 0:02:53]} 5. Nd5 {[%clk 0:02:44]}  Bc5 {[%clk 0:02:52]} 6. Nf3 {[%clk 0:02:39]}  Be6 {[%clk 0:02:50]} 7. Nf4 {[%clk 0:02:36]}  Bg4 {[%clk 0:02:38]} 8. Bb5 {[%clk 0:02:34]}  Ne7 {[%clk 0:02:35]} 9. h3 {[%clk 0:02:34]}  Bxf3 {[%clk 0:02:34]} 10. Qxf3 {[%clk 0:02:33]}  O-O {[%clk 0:02:34]} 11. Nd3 {[%clk 0:02:31]}  Bb6 {[%clk 0:02:32]} 12. O-O {[%clk 0:02:30]}  Ng6 {[%clk 0:02:25]} 13. Bxc6 {[%clk 0:02:29]}  bxc6 {[%clk 0:02:25]} 14. Qg3 {[%clk 0:02:26]}  c5 {[%clk 0:01:50]} 15. b3 {[%clk 0:02:25]}  a5 {[%clk 0:01:49]} 16. f4 {[%clk 0:02:19]}  Ne7 {[%clk 0:01:44]} 17. f5 {[%clk 0:02:18]}  Kh8 {[%clk 0:01:41]} 18. Bg5 {[%clk 0:01:48]}  f6 {[%clk 0:01:35]} 19. exf6 {[%clk 0:01:48]}  gxf6 {[%clk 0:01:35]} 20. Bh6 {[%clk 0:01:48]}  Rg8 {[%clk 0:01:33]} 21. Qh4 {[%clk 0:01:48]}  Nc6 {[%clk 0:01:28]} 22. e5 {[%clk 0:01:28]}  Nxe5 {[%clk 0:01:18]} 23. Nxe5 {[%clk 0:01:27]}  fxe5 {[%clk 0:01:18]} 24. f6 {[%clk 0:01:28]}  Rg6 {[%clk 0:01:07]} 25. Bg7+ {[%clk 0:01:07]}  Kg8 {[%clk 0:01:06]} 26. Qe4 {[%clk 0:01:05]}  d3 {[%clk 0:00:34]} 27. Qxe5 {[%clk 0:00:56]}  Qd4+ {[%clk 0:00:31]} 28. Qxd4 {[%clk 0:00:56]}  cxd4 {[%clk 0:00:31]} 29. cxd3 {[%clk 0:00:57]}  Bc5 {[%clk 0:00:26]} 30. Rae1 {[%clk 0:00:46]}  Kf7 {[%clk 0:00:24]} 31. Re4 {[%clk 0:00:41]}  a4 {[%clk 0:00:21]} 32. Rc1 {[%clk 0:00:36]}  Bd6 {[%clk 0:00:20]} 33. b4 {[%clk 0:00:29]}  Rg5 {[%clk 0:00:17]} 34. Rxd4 {[%clk 0:00:28]}  Rb5 {[%clk 0:00:12]} 35. a3 {[%clk 0:00:28]}  Re8 {[%clk 0:00:12]} 36. Rdc4 {[%clk 0:00:26]}  Re2 {[%clk 0:00:10]} 37. R4c2 {[%clk 0:00:20]}  Rbe5 {[%clk 0:00:09]} 38. Rxe2 {[%clk 0:00:18]}  Rxe2 {[%clk 0:00:09]} 39. Kf1 {[%clk 0:00:18]}  Ra2 {[%clk 0:00:08]} 40. Rc3 {[%clk 0:00:18]}  Ke6 {[%clk 0:00:07]} 41. d4 {[%clk 0:00:16]}  Rd2 {[%clk 0:00:06]} 42. Rf3 {[%clk 0:00:15]}  Kf7 {[%clk 0:00:06]} 43. Rc3 {[%clk 0:00:13]}  Rxd4 {[%clk 0:00:06]} 44. Ke2 {[%clk 0:00:13]}  Re4+ {[%clk 0:00:04]} 45. Kf3 {[%clk 0:00:13]}  Re1 {[%clk 0:00:05]} 46. g4 {[%clk 0:00:09]}  Rb1 {[%clk 0:00:05]} 47. Ke4 {[%clk 0:00:09]}  Rb3 {[%clk 0:00:05]} 48. Rxb3 {[%clk 0:00:09]}  axb3 {[%clk 0:00:05]} 49. Kd3 {[%clk 0:00:09]}  Be5 {[%clk 0:00:05]} 50. a4 {[%clk 0:00:09]}  Ke6 {[%clk 0:00:04]} 51. a5 {[%clk 0:00:09]}  b2 {[%clk 0:00:03]} 52. Kc2 {[%clk 0:00:09]}  Bc3 {[%clk 0:00:03]} 53. a6 {[%clk 0:00:09]}  Bd4 {[%clk 0:00:03]} 54. b5 {[%clk 0:00:09]}  Kf7 {[%clk 0:00:03]} 55. g5 {[%clk 0:00:09]}  Kg6 {[%clk 0:00:02]} 56. h4 {[%clk 0:00:08]}  Kf7 {[%clk 0:00:03]} 57. h5 {[%clk 0:00:09]} 1-0


[Site "https://www.chess.com"]

[Event "Titled Tuesday Blitz May 25 2021"]
[White "Shtyka, Sergey"]
[Black "Romanchuk, Viktor"]
[WhiteFideId "4138465"]
[BlackFideId "14109271"]
[WhiteElo "2102"]
[BlackElo "2242"]
[Result "1/2-1/2"]
[Round "11"]
[TimeControl "180+1"]
[Date "2021.05.25"]
[WhiteClock "0:00:48"]
[BlackClock "0:00:32"]

1. e4 {[%clk 0:03:00]}  e6 {[%clk 0:02:58]} 2. Nf3 {[%clk 0:03:01]}  d5 {[%clk 0:02:57]} 3. e5 {[%clk 0:03:01]}  c5 {[%clk 0:02:56]} 4. b4 {[%clk 0:03:01]}  b6 {[%clk 0:02:56]} 5. a3 {[%clk 0:03:00]}  a5 {[%clk 0:02:55]} 6. b5 {[%clk 0:02:58]}  d4 {[%clk 0:02:52]} 7. Bc4 {[%clk 0:02:54]}  Bb7 {[%clk 0:02:52]} 8. d3 {[%clk 0:02:54]}  Ne7 {[%clk 0:02:50]} 9. O-O {[%clk 0:02:54]}  Ng6 {[%clk 0:02:42]} 10. Nbd2 {[%clk 0:02:53]}  Nd7 {[%clk 0:02:41]} 11. Re1 {[%clk 0:02:53]}  Qc7 {[%clk 0:02:40]} 12. Qe2 {[%clk 0:02:48]}  Be7 {[%clk 0:02:39]} 13. Ba2 {[%clk 0:02:33]}  O-O {[%clk 0:02:31]} 14. Nc4 {[%clk 0:02:33]}  Bxf3 {[%clk 0:02:27]} 15. gxf3 {[%clk 0:02:25]}  Nh4 {[%clk 0:02:23]} 16. Bf4 {[%clk 0:02:14]}  Qb7 {[%clk 0:02:21]} 17. Nd2 {[%clk 0:02:14]}  Ng6 {[%clk 0:02:12]} 18. Bg3 {[%clk 0:02:14]}  Bg5 {[%clk 0:02:07]} 19. Ne4 {[%clk 0:02:11]}  Bf4 {[%clk 0:02:05]} 20. Nd6 {[%clk 0:02:08]}  Qc7 {[%clk 0:02:05]} 21. Nc4 {[%clk 0:02:07]}  h5 {[%clk 0:01:52]} 22. Qe4 {[%clk 0:02:04]}  Bh6 {[%clk 0:01:43]} 23. Re2 {[%clk 0:01:59]}  Bg5 {[%clk 0:01:28]} 24. f4 {[%clk 0:01:51]}  Bh6 {[%clk 0:01:23]} 25. h3 {[%clk 0:01:52]}  Ne7 {[%clk 0:01:22]} 26. Nd6 {[%clk 0:01:49]}  g6 {[%clk 0:01:20]} 27. Bh4 {[%clk 0:01:47]}  Nf5 {[%clk 0:01:16]} 28. Nxf5 {[%clk 0:01:45]}  exf5 {[%clk 0:01:17]} 29. Qg2 {[%clk 0:01:41]}  Kh7 {[%clk 0:01:13]} 30. Bg5 {[%clk 0:01:41]}  Rfe8 {[%clk 0:01:09]} 31. Bxf7 {[%clk 0:01:39]}  Nf8 {[%clk 0:01:04]} 32. Bxe8 {[%clk 0:01:37]}  Rxe8 {[%clk 0:01:04]} 33. Bxh6 {[%clk 0:01:31]}  Kxh6 {[%clk 0:01:05]} 34. h4 {[%clk 0:01:15]}  Ne6 {[%clk 0:01:03]} 35. Qg3 {[%clk 0:01:15]}  Qd7 {[%clk 0:00:52]} 36. a4 {[%clk 0:01:15]}  Qd5 {[%clk 0:00:51]} 37. Kh2 {[%clk 0:01:15]}  Rg8 {[%clk 0:00:45]} 38. Ree1 {[%clk 0:01:02]}  Kg7 {[%clk 0:00:42]} 39. Rg1 {[%clk 0:01:01]}  Kf7 {[%clk 0:00:42]} 40. f3 {[%clk 0:00:54]}  Qd8 {[%clk 0:00:36]} 41. Rg2 {[%clk 0:00:52]}  Qd5 {[%clk 0:00:34]} 42. Rgg1 {[%clk 0:00:51]}  Qd8 {[%clk 0:00:33]} 43. Rg2 {[%clk 0:00:49]}  Qd5 {[%clk 0:00:32]} 44. Rgg1 {[%clk 0:00:48]} 1/2-1/2


[Site "https://www.chess.com"]

[Event "Titled Tuesday Blitz May 25 2021"]
[White "Sliwicki, Damian"]
[Black "Sergey85Rodchenkov"]
[WhiteFideId "1127128"]
[WhiteElo "2149"]
[BlackElo "2512"]
[Result "0-1"]
[Round "11"]
[TimeControl "180+1"]
[Date "2021.05.25"]
[WhiteClock "0:00:02"]
[BlackClock "0:01:03"]

1. e4 {[%clk 0:02:59]}  c5 {[%clk 0:02:58]} 2. Nf3 {[%clk 0:02:58]}  d6 {[%clk 0:02:58]} 3. d4 {[%clk 0:02:57]}  cxd4 {[%clk 0:02:59]} 4. Qxd4 {[%clk 0:02:53]}  e5 {[%clk 0:02:58]} 5. Qe3 {[%clk 0:02:48]}  Be7 {[%clk 0:02:58]} 6. c4 {[%clk 0:02:44]}  h6 {[%clk 0:02:57]} 7. Nc3 {[%clk 0:02:43]}  Nf6 {[%clk 0:02:57]} 8. h3 {[%clk 0:02:43]}  Be6 {[%clk 0:02:57]} 9. Be2 {[%clk 0:02:43]}  O-O {[%clk 0:02:58]} 10. O-O {[%clk 0:02:43]}  a6 {[%clk 0:02:58]} 11. b3 {[%clk 0:02:44]}  Nbd7 {[%clk 0:02:58]} 12. Ba3 {[%clk 0:02:44]}  Qa5 {[%clk 0:02:58]} 13. Bb2 {[%clk 0:02:41]}  Rfc8 {[%clk 0:02:56]} 14. Rfd1 {[%clk 0:02:39]}  Rab8 {[%clk 0:02:56]} 15. Rac1 {[%clk 0:02:33]}  b5 {[%clk 0:02:55]} 16. cxb5 {[%clk 0:02:34]}  axb5 {[%clk 0:02:55]} 17. Nd5 {[%clk 0:01:34]}  Bxd5 {[%clk 0:02:49]} 18. Rxc8+ {[%clk 0:01:31]}  Rxc8 {[%clk 0:02:47]} 19. exd5 {[%clk 0:01:32]}  Qxa2 {[%clk 0:02:45]} 20. Rd2 {[%clk 0:01:22]}  Nxd5 {[%clk 0:02:34]} 21. Rxd5 {[%clk 0:00:59]}  Qxb2 {[%clk 0:02:34]} 22. Bxb5 {[%clk 0:00:59]}  Nf6 {[%clk 0:02:33]} 23. Rd1 {[%clk 0:00:55]}  Rc3 {[%clk 0:02:26]} 24. Qa7 {[%clk 0:00:54]}  Qxb3 {[%clk 0:02:17]} 25. Qb8+ {[%clk 0:00:37]}  Kh7 {[%clk 0:02:13]} 26. Ra1 {[%clk 0:00:38]}  Rc5 {[%clk 0:01:51]} 27. Qb7 {[%clk 0:00:38]}  Rxb5 {[%clk 0:01:46]} 28. Qxe7 {[%clk 0:00:38]}  Qe6 {[%clk 0:01:44]} 29. Qd8 {[%clk 0:00:30]}  e4 {[%clk 0:01:40]} 30. Nh4 {[%clk 0:00:08]}  Qd7 {[%clk 0:01:25]} 31. Qf8 {[%clk 0:00:06]}  Qe8 {[%clk 0:01:23]} 32. Qxd6 {[%clk 0:00:06]}  Qe5 {[%clk 0:01:19]} 33. Qxe5 {[%clk 0:00:06]}  Rxe5 {[%clk 0:01:19]} 34. Re1 {[%clk 0:00:07]}  g5 {[%clk 0:01:15]} 35. Nf3 {[%clk 0:00:08]}  Re8 {[%clk 0:01:14]} 36. Nd4 {[%clk 0:00:08]}  Kg6 {[%clk 0:01:14]} 37. f3 {[%clk 0:00:06]}  e3 {[%clk 0:01:11]} 38. Nc2 {[%clk 0:00:07]}  Nd5 {[%clk 0:01:11]} 39. Kf1 {[%clk 0:00:07]}  f5 {[%clk 0:01:11]} 40. g3 {[%clk 0:00:06]}  f4 {[%clk 0:01:10]} 41. gxf4 {[%clk 0:00:06]}  gxf4 {[%clk 0:01:11]} 42. Ke2 {[%clk 0:00:07]}  Kf5 {[%clk 0:01:06]} 43. Ra1 {[%clk 0:00:04]}  Rc8 {[%clk 0:01:03]} 44. Nd4+ {[%clk 0:00:03]}  Ke5 {[%clk 0:01:03]} 45. Rd1 {[%clk 0:00:02]}  Nc3+ {[%clk 0:01:03]} 0-1


[Site "https://www.chess.com"]

[Event "Titled Tuesday Blitz May 25 2021"]
[White "Spyropoulos, Nikolaos"]
[Black "Rozen, Eytan"]
[WhiteFideId "4298977"]
[BlackFideId "2816750"]
[WhiteElo "2159"]
[BlackElo "1963"]
[Result "1-0"]
[Round "11"]
[TimeControl "180+1"]
[Date "2021.05.25"]
[WhiteClock "0:00:11"]
[BlackClock "0:00:17"]

1. e4 {[%clk 0:02:56]}  d6 {[%clk 0:02:56]} 2. d4 {[%clk 0:02:55]}  Nf6 {[%clk 0:02:56]} 3. Nc3 {[%clk 0:02:55]}  e5 {[%clk 0:02:57]} 4. Nf3 {[%clk 0:02:54]}  Nbd7 {[%clk 0:02:58]} 5. Bc4 {[%clk 0:02:55]}  Be7 {[%clk 0:02:58]} 6. O-O {[%clk 0:02:55]}  O-O {[%clk 0:02:59]} 7. a4 {[%clk 0:02:56]}  c6 {[%clk 0:02:59]} 8. Re1 {[%clk 0:02:56]}  b6 {[%clk 0:02:59]} 9. h3 {[%clk 0:02:56]}  a6 {[%clk 0:02:58]} 10. Bg5 {[%clk 0:02:54]}  Bb7 {[%clk 0:02:52]} 11. Bb3 {[%clk 0:02:50]}  b5 {[%clk 0:02:51]} 12. Qd2 {[%clk 0:02:45]}  h6 {[%clk 0:02:32]} 13. Bh4 {[%clk 0:02:44]}  exd4 {[%clk 0:02:28]} 14. Nxd4 {[%clk 0:02:31]}  b4 {[%clk 0:02:23]} 15. Nd1 {[%clk 0:02:11]}  Nc5 {[%clk 0:02:23]} 16. Nf5 {[%clk 0:02:10]}  Nxb3 {[%clk 0:02:09]} 17. cxb3 {[%clk 0:02:10]}  c5 {[%clk 0:02:07]} 18. Nde3 {[%clk 0:02:07]}  g5 {[%clk 0:01:49]} 19. Nxe7+ {[%clk 0:02:01]}  Qxe7 {[%clk 0:01:50]} 20. Nf5 {[%clk 0:02:00]}  Qe5 {[%clk 0:01:50]} 21. Bg3 {[%clk 0:00:59]}  Nxe4 {[%clk 0:01:47]} 22. Bxe5 {[%clk 0:00:59]}  Nxd2 {[%clk 0:01:47]} 23. Bxd6 {[%clk 0:00:59]}  Rfe8 {[%clk 0:01:38]} 24. Nxh6+ {[%clk 0:00:53]}  Kg7 {[%clk 0:01:37]} 25. Nf5+ {[%clk 0:00:51]}  Kf6 {[%clk 0:01:37]} 26. Ne3 {[%clk 0:00:48]}  Nxb3 {[%clk 0:01:31]} 27. Rad1 {[%clk 0:00:47]}  Rad8 {[%clk 0:01:28]} 28. Rd3 {[%clk 0:00:45]}  c4 {[%clk 0:01:02]} 29. Rdd1 {[%clk 0:00:35]}  a5 {[%clk 0:00:18]} 30. Nxc4 {[%clk 0:00:30]}  Rxe1+ {[%clk 0:00:19]} 31. Rxe1 {[%clk 0:00:29]}  Ba6 {[%clk 0:00:18]} 32. Be7+ {[%clk 0:00:28]}  Kg6 {[%clk 0:00:17]} 33. Bxd8 {[%clk 0:00:29]}  Bxc4 {[%clk 0:00:18]} 34. Re5 {[%clk 0:00:27]}  f6 {[%clk 0:00:17]} 35. Re7 {[%clk 0:00:12]}  Nc5 {[%clk 0:00:14]} 36. Rc7 {[%clk 0:00:09]}  Ne6 {[%clk 0:00:14]} 37. Rxc4 {[%clk 0:00:09]}  Nxd8 {[%clk 0:00:15]} 38. Rc5 {[%clk 0:00:09]}  Nb7 {[%clk 0:00:16]} 39. Rb5 {[%clk 0:00:10]}  Nd6 {[%clk 0:00:17]} 40. Rxa5 {[%clk 0:00:10]}  Nc4 {[%clk 0:00:17]} 41. Rb5 {[%clk 0:00:11]} 1-0


[Site "https://www.chess.com"]